Cogmind - Beta 10.1 @@@ ROGUE MODE // 2020.09.26 @ 22:49:09 Player: Palikka Result: Destroyed by S-10 Pest with Light Assault Rifle Performance ------------- Evolutions (0) 0 Regions Visited (2) 400 Robots Destroyed (23) 115 Value Destroyed (535) 535 Prototype IDs (0) 0 Alien Tech Used (0) 0 Bonus (75) 75 TOTAL SCORE: 1125 Bonus ------- Follower Combat Kills 75 Cogmind --------- Core Integrity 0/250 Matter 300/300 Energy 265/265 System Corruption 0% Temperature Cool (0) Movement Rolling (120) Ox2 Location -10/Mines Parts ------- > --- POWER (1) -------- Improved Ion Engine > --- PROPULSION (2) --- Aluminum Leg Compact Wheel > --- UTILITY (2) ------ Large Storage Unit Large Storage Unit > --- WEAPON (2) ------- Light Assault Rifle Heavy Assault Rifle > --- INVENTORY (16) --- Ion Engine Light Ion Engine Light Treads Compact Wheel Improved Heat Sink Large Storage Unit Small Battery (100) Medium Matter Pod (100) Medium Matter Pod (100) Signal Interpreter Light Armor Plating EM Pulse Gun Beam Cannon Grenade Launcher Grenade Launcher Grenade Launcher Peak State ------------ > --- POWER ------------ Improved Ion Engine > --- PROPULSION ------- Aluminum Leg Compact Wheel > --- UTILITY ---------- Large Storage Unit Large Storage Unit > --- WEAPON ----------- Light Assault Rifle Heavy Assault Rifle > --- INVENTORY -------- Ion Engine Light Ion Engine Light Treads Compact Wheel Improved Heat Sink Large Storage Unit Small Battery Medium Matter Pod Medium Matter Pod Signal Interpreter Light Armor Plating EM Pulse Gun Beam Cannon Grenade Launcher Grenade Launcher Grenade Launcher [Rating: 10] Favorites ----------- Power Light Ion Engine Engine Light Ion Engine Propulsion Light Treads Treads Light Treads Leg Aluminum Leg Wheel Compact Wheel Utility Large Storage Unit Device Improved Heat Sink Storage Large Storage Unit Weapon Assault Rifle Energy Gun Small Laser Ballistic Gun Assault Rifle Launcher Grenade Launcher Special Weapon Mining Laser Build | -11 -10 -10 ------- Run | Scr Mat Min Slots Evolved . | . . . Power . | . . . Propulsion . | . . . Utility . | . . . Weapon . | . . . Parts Attached 23 | 5 6 12 Power 3 | 1 . 2 Engine 3 | 1 . 2 Core . | . . . Reactor . | . . . Propulsion 5 | 2 . 3 Treads 3 | 2 . 1 Leg 1 | . . 1 Wheel 1 | . . 1 Hover . | . . . Flight . | . . . Utility 4 | 1 3 . Device 1 | . 1 . Storage 3 | 1 2 . Processor . | . . . Hackware . | . . . Protection . | . . . Artifact . | . . . Weapon 11 | 1 3 7 Energy Gun 1 | . 1 . Energy Cannon . | . . . Ballistic Gun 8 | 1 2 5 Ballistic Cannon . | . . . Launcher 1 | . . 1 Special Weapon 1 | . . 1 Impact Weapon . | . . . Slashing Weapon . | . . . Piercing Weapon . | . . . Special Melee Weapon . | . . . Unidentified Prototypes . | . . . Parts Lost 6 | . . 6 Power 1 | . . 1 Propulsion 3 | . . 3 Utility . | . . . Weapon 2 | . . 2 Highest Loss Streak 3 | . . 3 Average Slot Usage (%) 96 | . 94 97 Engine 13 | . 14 13 Treads 21 | . 28 14 Leg 1 | . . 2 Wheel 4 | . . 8 Storage 26 | . 24 28 Energy Gun 2 | . 4 . Ballistic Gun 24 | . 21 27 Naked Turns . | . . . Heaviest Build 43 | 9 38 43 Greatest Support 40 | 40 40 40 Greatest Overweight (x) 2 | 1 . 2 Average Overweight (x) . | . . 1 Largest Inventory Capacity 16 | 6 16 16 Average Capacity 14 | 5 13 16 Most Carried 16 | 5 16 16 Average Carried 12 | 2 9 15 Final Capacity 16 | 6 16 16 Final Carried 16 | 5 16 16 Class Distribution -------------------- 91% | Mutant 8% | Scavenger-Mutant Dominant Class ---------------- Mutant | -10/Materials Mutant | -10/Mines Resources | -11 -10 -10 ----------- Run | Scr Mat Min Matter Collected 885 | 222 273 390 Remotely . | . . . Salvage Created 677 | . 275 402 Parts 45 | . 25 20 Haulers Intercepted 1 | . 1 . Recyclers Shooed 1 | 1 . . Parts Field Recycled . | . . . Retrieved Matter . | . . . Parts Self-Destructed . | . . . Prevented . | . . . Kills | -11 -10 -10 ------- Run | Scr Mat Min Combat Hostiles Destroyed 18 | . 6 12 Guns 15 | . 6 9 AOE 3 | . . 3 Classes Destroyed 7 | . 6 1 Worker 1 | . 1 . Builder 1 | . 1 . Tunneler 1 | . . 1 Hauler 1 | . 1 . Watcher 1 | . 1 . Swarmer 6 | . 3 3 Grunt 12 | . 3 9 Best Kill Streak 4 | . 4 4 Combat Bots Only 4 | . 3 4 Max Kills in Single Turn 2 | . 2 2 Gunslinging . | . . . Exploded 2 | . . 2 Melee . | . . . Uniques/NPCs Destroyed . | . . . Combat | -11 -10 -10 -------- Run | Scr Mat Min Damage Taken 1113 | . 309 804 Core 251 | . 86 165 Absorbed by Shields . | . . . Core Remaining (%) 100 | 100 . . Volleys Fired 84 | . 29 55 Largest 2 | . 2 2 Hottest 100 | . 60 100 Shots Fired 143 | . 43 100 Gun 138 | . 43 95 Cannon . | . . . Launcher 2 | . . 2 Special 3 | . . 3 Kinetic 129 | . 34 95 Thermal 12 | . 9 3 Explosive 2 | . . 2 Electromagnetic . | . . . Robot Hit Streak 13 | . 13 11 Robot Miss Streak 5 | . 2 5 Penetration Max . | . . . Secondary Targets 3 | . 2 1 Max Gunslinging Chain 1 | . 1 1 Shots Hit Robots 99 | . 31 68 Core Hits 39 | . 14 25 Critical Hits 1 | . . 1 Critical Kills . | . . . Critical Parts Destroyed 1 | . . 1 Melee Attacks . | . . . Impact . | . . . Slashing . | . . . Piercing . | . . . Sneak Attacks . | . . . Combat Hostiles . | . . . Follow-up Attacks . | . . . Damage Inflicted 1285 | 1 404 880 Guns 1088 | . 389 699 Cannons . | . . . Explosions 154 | . . 154 Melee . | . . . Ramming 43 | 1 15 27 Kinetic 1032 | . 333 699 Thermal 56 | . 56 . Explosive 154 | . . 154 Electromagnetic . | . . . Impact . | . . . Slashing . | . . . Piercing . | . . . Highest Corruption . | . . . Average Corruption . | . . . Corruption Purged . | . . . Overload Shots . | . . . Overflow Damage . | . . . Projectiles . | . . . Explosions . | . . . Melee . | . . . Knockbacks . | . . . Impact . | . . . Kinetic . | . . . Secondary . | . . . Self-Inflicted Damage 13 | . . 13 Shots . | . . . Rammed 6 | 1 1 4 Targets Rammed 7 | 1 2 4 Kicked . | . . . Crushed 1 | . 1 . Highest Temperature 31 | . 18 31 Average Temperature 9 | . 12 8 Received Heat Transfer 510 | . 129 381 Siege Activations . | . . . Robots Corrupted . | . . . Combat Hostiles . | . . . Parts Fried . | . . . Impact Corruptions . | . . . Robots Melted . | . . . Combat Hostiles . | . . . Parts Melted . | . . . Heat Transferred 125 | . 125 . Parts Sabotaged . | . . . Parts Stolen . | . . . Parts Stripped . | . . . Power Chain Reactions . | . . . Missiles Intercepted . | . . . Alert | -11 -10 -10 ------- Run | Scr Mat Min Peak Influence 182 | . 182 150 Initial 9 | . . 9 Average 61 | . 54 72 Maximum Alert Level . | . . . Low Security (%) 100 | 100 100 100 Level 1 . | . . . Level 2 . | . . . Level 3 . | . . . Level 4 . | . . . Level 5 . | . . . High Security . | . . . Max Security . | . . . Squads Dispatched 2 | . 2 . Investigation . | . . . Extermination . | . . . Reinforcement 2 | . 2 . Assault . | . . . Garrison . | . . . Intercept . | . . . Construction Impeded . | . . . Haulers Reinforced . | . . . Stealth | -11 -10 -10 --------- Run | Scr Mat Min Distress Signals 3 | . . 3 Communications Jammed . | . . . Distress Signals . | . . . Times Spotted 27 | . 10 17 Peak Tracking Total 4 | . 4 3 Tactical Retreats . | . . . Traps | -11 -10 -10 ------- Run | Scr Mat Min Traps Triggered . | . . . Indirectly . | . . . Trap Hack Attempts . | . . . Triggered . | . . . Disarmed . | . . . Reprogrammed . | . . . Reused . | . . . Traps Extracted . | . . . Installed . | . . . Triggered . | . . . Machines | -11 -10 -10 ---------- Run | Scr Mat Min Machines Disabled 1 | . . 1 Max in Single Turn 1 | . . 1 Machines Sabotaged . | . . . Garrisons Compromised . | . . . Overloaded Fab Kills . | . . . Fab Network Shutdowns . | . . . Hacking | -11 -10 -10 --------- Run | Scr Mat Min Machines Accessed 2 | . 2 . Terminals 2 | . 2 . Fabricators . | . . . Repair Stations . | . . . Recycling Units . | . . . Scanalyzers . | . . . Garrison Access . | . . . Total Hacks 6 | . 6 . Successful 3 | . 3 . Failed 3 | . 3 . Catastrophic . | . . . Database Lockouts . | . . . Manual 4 | . 4 . Terminals 6 | . 6 . Fabricators . | . . . Repair Stations . | . . . Recycling Units . | . . . Scanalyzers . | . . . Garrison Access . | . . . Terminal Hacks 1 | . 1 . Terminal Index 1 | . 1 . Fabricator Hacks . | . . . Repair Station Hacks . | . . . Recycling Unit Hacks . | . . . Scanalyzer . | . . . Garrison Access Hacks . | . . . Unauthorized Hacks 2 | . 2 . Terminals 2 | . 2 . Track 1 | . 1 . Botnet 1 | . 1 . Fabricators . | . . . Repair Stations . | . . . Recycling Units . | . . . Scanalyzers . | . . . Garrison Access . | . . . Data Cores Recovered . | . . . Used . | . . . Hacking Detections 2 | . 2 . Full Trace Events . | . . . Feedback Events . | . . . Feedback Blocked . | . . . Robot Schematics Acquired . | . . . Robots Built . | . . . Matter . | . . . Time . | . . . Total Robot Build Rating . | . . . Part Schematics Acquired . | . . . Parts Built . | . . . Matter . | . . . Time . | . . . Total Part Build Rating . | . . . Parts Repaired . | . . . Time . | . . . Parts Recycled . | . . . Recycled Matter . | . . . Retrieved Matter . | . . . Retrieved Components . | . . . Parts Scanalyzed . | . . . Part Schematics Acquired . | . . . Parts Damaged . | . . . Bothacking | -11 -10 -10 ------------ Run | Scr Mat Min Used RIF Installer . | . . . Robots Hacked . | . . . Non-combat . | . . . Combat . | . . . Robot Hacks Applied . | . . . Relay Couplers Released . | . . . Robots Rewired . | . . . Allies Hacked . | . . . Hacks Repelled . | . . . Allies | -11 -10 -10 -------- Run | Scr Mat Min Total Allies 1 | . . 1 Largest Group 1 | . . 1 Highest-Rated Group 31 | . . 31 Highest-Rated Ally 31 | . . 31 Total Orders . | . . . Ally Attacks 8 | . . 8 Total Damage 82 | . . 82 Kills 3 | . . 3 Allies Corrupted . | . . . Allies Melted . | . . . Intel | -11 -10 -10 ------- Run | Scr Mat Min Robot Analysis Total . | . . . Derelict Logs Recovered 2 | . . 2 Drone Launches . | . . . Drone Recoveries . | . . . Exploration | -11 -10 -10 ------------- Run | Scr Mat Min Turns Passed 1425 | 59 644 722 Spaces Moved 751 | 32 323 396 Core 5 | 5 . . Treads 457 | 27 323 107 Legs . | . . . Wheels 289 | . . 289 Hover . | . . . Flight . | . . . Fastest Speed 50 | 50 160 120 Average Speed 143 | 144 160 130 Slowest Speed 160 | 160 160 160 Overloaded Moves . | . . . Propulsion Burnouts . | . . . Robots Hopped . | . . . Cave-ins Triggered . | . . . Exploration Rate (%) 50 | 3 65 84 Regions Visited 2 Branch Regions 1 Pre-discovered Areas . | . . . Known Exits Taken . | . . . Unknown Exits Taken 2 | 1 1 . Scrap Searched 1 | . . 1 Spaces Dug 3 | . . 3 Terrain Destroyed 19 | . . 19 Melee . | . . . Projectile 3 | . . 3 AOE 16 | . . 16 Terrain Rammed . | . . . Walls Destroyed . | . . . Machines Disabled . | . . . Actions | -11 -10 -10 --------- Run | Scr Mat Min Total 959 | 42 408 509 Wait 51 | . 31 20 Move 749 | 31 322 396 Hop . | . . . Pick Up 31 | 5 13 13 Fast Attach 7 | 5 2 . Attach 7 | . 1 6 Detach 1 | . 1 . Swap 9 | . 3 6 Drop 13 | . 4 9 Fire 84 | . 29 55 Melee . | . . . Ram 4 | . . 4 Kick . | . . . Crush 3 | 1 2 . Escape Stasis . | . . . Rewire . | . . . Trap . | . . . Miscellaneous . | . . . Route ------- -11/Scrapyard -10/Materials (discovered 2 exits: [*Min x2]) -10/Mines (discovered 1 exit: [*Mat]) History --------- Turn | Location | Event 11 | -11/Scrapyard | Discovered new exit (range 16) 60 | -11/Scrapyard | Entered Materials 317 | -10/Materials | Build established: Mutant 343 | -10/Materials | Discovered new exit (range 8) 490 | -10/Materials | Discovered new exit (range 6) 704 | -10/Materials | Entered Mines 857 | -10/Mines | Core integrity fell below 50% 869 | -10/Mines | Excavation squad dispatched 869 | -10/Mines | A large section of the Mines collapsed 987 | -10/Mines | Lost 3 parts (1p1n1w) 994 | -10/Mines | Learned Materials garrison access intel 1119 | -10/Mines | Excavation squad dispatched 1132 | -10/Mines | Received a Mining Laser from a helpful Derelict 1254 | -10/Mines | Core integrity fell below 20% 1310 | -10/Mines | Joined a pair of Derelicts in attacking an 0b10 outpost 1369 | -10/Mines | Excavation squad dispatched 1420 | -10/Mines | Discovered new exit (range 5) 1426 | -10/Mines | Destroyed by S-10 Pest with Light Assault Rifle Last Messages --------------- 01333_ Acquired 10 matter. 01337_ Dropped Grenade Launcher. 01337_ Acquired Grenade Launcher. 01369_ ALERT: Derelict activity in mines confirmed. Dispatching additional escorted excavation squad. 01378_ Slammed into T-07 Excavator. 01379_ T-07 Excavator sends out distress signal. 01383_ AV-VZY(g) destroyed. 01385_ Acquired 3 matter. 01393_ G-34 Mercenary destroyed. 01393_ Switching to secondary target: G-34 Mercenary. 01401_ G-34 Mercenary destroyed. 01407_ G-34 Mercenary suffers critical hit. 01407_ Destroyed Sml. Laser. 01407_ G-34 Mercenary destroyed. 01414_ Acquired 32 matter. 01418_ Acquired 5 matter. 01420_ Slammed into T-07 Excavator. 01420_ EXIT=FOUND 01421_ T-07 Excavator sends out distress signal. Map ----- +----------------------------------------------------+ | #??????## ######*"""!""" """ #?## | | ##?????## =% =%""" """ """ ## ### | | ###?????## ### ###[== ## ## | | ???????## #??# #?################## ### | | ######## """ ##?# #??????????????????# # | | """ ### #??????????????????# # | | """ ## ####????????????#########" ## | | ######### #?????????#### ##??#"#"#? | | #???????## ##### ########### ##?#####? | | #????????## ##???# ##?????? | | #?????????######????#### ####### ##????? | | #??????????????????????# #??#### #????? | | !####??????????????????? #?##|!## #????? | | ##?????????????????####?#" !=# ##?### | | #??????????????????????#%* =+ ## # | | #??????????????????????#[!%[+ | | ##??????????????????????#" !]# | | #???????????????????????##!!## # | | #????????????????????????####### ### | | # ##??????????????????????????????## ######?? | | ?###??????????????????????????####### ##??????? | | ????????????????? #???????????#=% #???????? | | ????????????????? #???????????#*#### #???????? | | ????????????????? #???????????#[#??# #???????? | | ??????????? ????? #???#######?# #??# #???????? | | ?????????? ???? #???#[=@s ###!#?# #???????? | | ???????## #???? ##??#%###%![%=#?## ##???????? | | ???#### #???## ##?????#%#####??######????????? | | ???# #???## ????? ????????????????????? | | ??? ##### ?????# #???????????????????? | | ??? ??????# < #???????????????????? | | #?# ######## #???????????????????? | | ## #???# # #???????????????????? | | #????# # #???????####????????? | | #####????## ####### # #??????? ##???????? | | ##?????????# #????# ######?????? #???????? | | ##????####??# #????# #??????????? #???????? | | ##????## ##### ##???# #??????????? #????????? | | ??????# ##??# #??????????? #????????? | | ??????# #??# ########???? #?????????? | | ??????# ### # #??# ##??# ##???? ??? | | ?????## ##?# ## ##??###### ### ### #??? | | ????## #??# #?##????????## #??? | | ???## ##?# #????????????## #???? | | #?## ### #?????????????## ####?????? | | #?# #??????????????# #####????????? | | #?# #####??????????????# ##????????????? | | ?## ##??????????????????## #?????????????? | | ## ##????????????????????## #?????????????? | | # ##?????????????????????# #?????????????? | +----------------------------------------------------+ Best States ------------- Heat Dissipation 39 Energy Generation 12 Energy Capacity 265 Matter Stores 300 Matter Capacity 300 Sight Range 16 Terrain Scan Density 10 Evasion (%) 40 Recoil Reduction 2 Item Schematics ----------------- None Robot Schematics ------------------ None Fabricated ------------ Nothing Alien Tech Used ----------------- None Achievements -------------- None Challenges ------------ None Game ------ Seed CoolingSignalBlade Manual? 0 Play Time 00:11:03 Cumulative 277.4 hours Start 2020.09.26 @ 22:38:10 End 2020.09.26 @ 22:49:09 Sessions 1 Manual Loads 0 Difficulty Rogue Special Mode None Game No. 390 Rogue 390 Adventurer 0 Explorer 0 Win Type - Total 32 Types 22/0/7/3/0/0/0/0/0 Lore% 85 Gallery% 81 Achievement% 49 Wizard Run 0 Options --------- ASCII 0 Keyboard 1 Movement Numpad Keybinds 0 Fullscreen 1 Font 24/Smallcaps Map View 76x50 Tactical HUD 1 Map Filters NONE Filters NONE Steam 1 RUN: 9eb9c07d-4798-471b-ad82-778f405d363c